Workbook

Sheet 預算說明書
A1: 台北市私立志仁高級中學職業進修學校
A2: 預算說明書
A3: 中華民國一○五學年度
A5: 一、學校組織及職掌：
A6: 本學校於民國五十六年創設，奉台北市教育局北市教雲四字第12217號函核准設立 ，並經臺灣士林地方法院登記於法人登記簿第八冊第三十三頁第一六七號在案。
A8: 本校以利人為職志，培育清寒子弟為優先，宏揚仁德孝善為目的，因宗旨崇高，教學認真，校風良好，迄今畢業校友已達二萬餘人，服務於社會各階層，成就卓著者不計其數。本校辦學績效獲社會各界市定，先後蒙行政院長、監察院長、教育部長、市長及社會人士贈匾嘉勉。今為配合時代潮流，社會需要，正積極逐年增設現代化教學設備，加強實用性職業科教學，期能造福莘莘學子，俾益社會。
A13: 本校設有資料處理科、觀光事業科、餐飲管理科、美容科及99學年度起新增設多媒體設計科等、並分為日間部、下午班、夜間部及週末班，實施多元(多時段教學)以滿足社會之需要。
A16: 二、重要校務計畫：
B17: 教務處： | C17: 今後國人從事各行各業皆須具有技術證照方得就業，持有證照者升學四技二專有加分優待，因此特別加強輔導學生考證照。
C18: 推動成人教育班落實終身學習。
C19: 加強本校週末班教學及管理，以增進學習效能。
C20: 辦理丙級技術士即測即評即發證檢定場地，提升換照時效。
C21: 品格教育年，本校於96年出刊品格教材課本，自97學年度起正式實施品格教育規定為一個必修學分，為全國第一所實施品格教學之學校。
C22: 99學年度起新增設多媒體設計科
B25: 學務處： | C25: 推動教室綠化、本校於87學年實施全面禁菸，為全國第一所全面禁菸學校、推廣學校教學活動。
C26: 提倡兩性平等教育、提高學生社區服務。
B27: 總務處： | C27: 更新電腦教室電腦及軟體設備更新。
C28: 規劃每間教室安裝電子白板及投影機設備，便於老師多元教學，提升學生學習專業知識。
C29: 加強洗手間設備：明亮、清潔美觀的空間，整體規劃，讓全校師生享受乾淨、整齊又方便的環境、並配合台北市市府廁所加裝衛生紙設備。
C30: 校園無障礙空間設施、設備規劃與設置‧規劃門禁自動化管制，防止外人進入，保障師生安全‧
C31: 教室全面安裝最新式電子白板，及多功能資訊講桌。
C32: 提倡節能減碳，燈具全面更換為T5燈管。
C33: 配合丙級技術士即測即評即發證中餐教室考場全面更新設備。
C34: 配合丙級技術士即測即評即發證烘焙教室考場全面更新設備。
C35: 103年度通過烘焙食品即測即評及發證丙級證照考場
C36: 配合丙級技術士即測即評及發證門市服務教室考場全面更新設備
A37: 三、收入預算說明：
B38: 如收入預算明細表
A40: 四、支出預算說明：
B41: 如支出預算明細表
A43: 五、重要固定資產增置計畫說明：
B44: 電腦教室電腦更新
B45: 烘焙教室全面更新
A46: 六：其他必要說明事項：
B47: 無

Sheet 收支餘絀預計表
A1: 台北市私立志仁高級中學職業進修學校
A2: 收 支 餘 絀 預 計 表
A3: 中華民國一○五學年度
A4: (103)前年度決算數 | B4: 科 目 | C4: (105)本年度 預算數(1) | D4: (104)上年度 決算數(2) | E4: 比較增減
E5: 金 額 (3)=(1)-(2) | F5: % (4)=(3)/(2)*100
A6: =A7+A8+A9+A10 -> 96692368 | B6: 各項收入 | C6: =(C7+C8+C9+C10) -> 93759755 | D6: =D7+D8+D9+D10 -> 93951403 | E6: =C6-D6 -> -191648 | F6: =(E6/D6)*100 -> -0.2039863098
A7: 90508849 | B7: 學雜費收入 | C7: 87680434 | D7: 87680434 | E7: =C7-D7 -> 0 | F7: =(E7/D7)*100 -> 0
A8: 1431653 | B8: 補助捐贈收入 | C8: 2000000 | D8: 2191648 | E8: =C8-D8 -> -191648 | F8: =(E8/D8)*100 -> -8.744469915
A9: 2581778 | B9: 財務收入 | C9: 2148261 | D9: 2148261 | E9: =C9-D9 -> 0 | F9: =(E9/D9)*100 -> 0
A10: 2170088 | B10: 其他收入 | C10: 1931060 | D10: 1931060 | E10: =C10-D10 -> 0 | F10: =(E10/D10)*100 -> 0
A11: =SUM(A12:A17) -> 91129341 | B11: 各項支出 | C11: =SUM(C12:C17) -> 90455360 | D11: =SUM(D12:D19) -> 90111452 | E11: =C11-D11 -> 343908 | F11: =(E11/D11)*100 -> 0.3816473848
A12: 180000 | B12: 董事會支出 | C12: 500000 | D12: 192000 | E12: 308000 | F12: 160.4166667
A13: 19969305 | B13: 行政管理支出 | C13: 19270740 | D13: 19270740 | E13: 0 | F13: 0
A14: 64971824 | B14: 教學研究及輔訓支出 | C14: 64208734 | D14: 64208734 | E14: 0 | F14: 0
A15: 2227912 | B15: 退休撫卹費 | C15: 2181711 | D15: 2181711 | E15: 0 | F15: 0
A16: 3780300 | B16: 獎助學金支出 | C16: 4206175 | D16: 4206175 | E16: 0 | F16: 0
A17: 0 | B17: 超額年金金 | C17: 88000 | D17: 52092 | E17: 35908 | F17: 68.93188973
A20: =A6-A11 -> 5563027 | B20: 本期餘絀 | C20: =C6-C11 -> 3304395 | D20: =D6-D11 -> 3839951 | E20: =C20-D20 -> -535556 | F20: =(E20/D20)*100 -> -13.9469488
A21: 說明：1、單位名稱合報表之編製主體作適當表達：(1)以學校法人為編製主體者，單位名稱為「○○學校財團法人」；(2)以學校法人所設私立學校為編製主體者，單位名稱為「○○學校」；(3)以學校法人及所設私立學校為編製主體者，單位名稱為「○○學校財團法人及所設私立學校」，且在報表名稱前加註〝合併〞兩字，例如「合併收支餘絀預計表」。
A22: 2、本表為表達預計(本)學年度及估計(上)學年度收支及餘絀。
A25: 校長： 主辦會計人員： 製表：

Sheet 預計固定資產變動
A1: 台北市私立志仁高級中學職業進修學校
A2: 預計固定資產變動表
A3: 中華民國一○五學年度
A5: 科目名稱 | B5: 估計本年初結存金額 | C5: 預計本年度增加金額 | D5: 預計本年度減少金額 | E5: 預計本年度底結存金額 | F5: 說 明
A7: 1300固定資產
A8: 1310土地 | B8: 29600000 | C8: 0 | D8: 0 | E8: =B8+C8 -> 29600000
A9: 1330房屋及建築物 | B9: 22655500 | C9: 0 | D9: 0 | E9: =B9+C9 -> 22655500
A10: 1340機械儀器及設備 | B10: 44623561 | C10: 5430000 | D10: 3308459 | E10: =B10+C10-D10 -> 46745102
A11: 1350圖書及博物 | B11: 1567258 | C11: 0 | D11: 0 | E11: =B11+C11 -> 1567258
A12: 1360其他設備 | B12: 8223775 | C12: 0 | D12: 0 | E12: =B12+C12-D12 -> 8223775
A13: 1400無形資產
A14: 1420電腦軟體 | B14: 6122810 | C14: 600000 | D14: 891288 | E14: =B14+C14-D14 -> 5831522
E15: =B15+C15-D15 -> 0
E16: =B16+C16 -> 0
E17: =B17+C17 -> 0
A18: 固定資產及無形資產合計 | B18: =SUM(B8:B17) -> 112792904 | C18: =SUM(C8:C17) -> 6030000 | D18: =SUM(D8:D17) -> 4199747 | E18: =SUM(E8:E17) -> 114623157
A20: 校長： 主辦會計人員： 製表：

Sheet 增置重要固定資預計
A1: 台北市私立志仁高級中學職業進修學校
A2: 預計增置重要固定資產及無形資產明細表
A3: 中華民國一○五學年度
A4: 科目、重要固定資產及 無形資產名稱 | B4: 提出單位 | C4: 數 量 | D4: 單 價 | E4: 總 價 | F4: 備 註
A5: 中西餐教室設備 | B5: 教務處 | C5: 1 | D5: 2000000 | E5: =C5*D5 -> 2000000 | F5: 專業教室
A6: 多媒體電腦 | B6: 教務處 | C6: 55 | D6: 21000 | E6: 1155000 | F6: 電腦教室
A7: 彩色液晶螢幕 | B7: 教務處 | C7: 55 | D7: 5000 | E7: 275000 | F7: 電腦教室
A8: 烘焙教室設備 | B8: 教務處 | C8: 1 | D8: 2000000 | E8: =D8*C8 -> 2000000 | F8: 專業教室
A9: 電腦軟體 | B9: 教務處 | C9: 1 | D9: 600000 | E9: 600000 | F9: 軟體
E10: 0
E11: 0
E12: =C12*D12 -> 0
E13: 0
E14: 0
E15: 0
E16: 0
E17: 0
A18: 合計 | E18: =SUM(E5:E17) -> 6030000
A20: 校長： 主辦會計人員： 製表：

Sheet 收入預算明細表(5)+附件
A1: 台北市私立志仁高級中學職業進修學校
A2: 收入預算明細表
A3: 中華民國一○五學年度
A4: (103)前年度決算數 | B4: 科 目 | C4: (105)本年度預算數 | D4: (104)估計(上)年度決算數 | E4: (本)年度預算與估計(上)年度決算比較 | G4: 說 明
E6: 差 異 | F6: %
A7: =SUM(A8:A9) -> 90508849 | B7: 4110學雜費收入 | C7: =SUM(C8:C9) -> 87680434 | D7: =SUM(D8:D9) -> 87680434 | E7: =C7-D7 -> 0 | F7: =(E7/D7)*100 -> 0 | G7: 詳附件一、二
A8: 72197517 | B8: 4111學費收入 | C8: 69921708 | D8: 69921708 | E8: =C8-D8 -> 0 | F8: =(E8/D8)*100 -> 0
A9: 18311332 | B9: 4112雜費收入 | C9: 17758726 | D9: 17758726 | E9: =C9-D9 -> 0 | F9: =(E9/D9)*100 -> 0
A10: =A11 -> 1431653 | B10: 4150補助收入及捐贈收入 | C10: =C11 -> 2000000 | D10: =D11 -> 2191648 | E10: -191648 | F10: =(E10/D10)*100 -> -8.744469915
A11: 1431653 | B11: 4151補助收入 | C11: 2000000 | D11: 2191648 | E11: -191648 | F11: -8.744469915
B12: 4152捐贈收入 | C12: 0 | D12: 0 | E12: 0
A13: =A14 -> 2581778 | B13: 4170財務收入 | C13: =C14 -> 2148261 | D13: =D14 -> 2148261 | E13: 0 | F13: 0
A14: 2581778 | B14: 4171利息收入 | C14: 2148261 | D14: 2148261 | E14: 0 | F14: 0
A15: 2170088 | B15: 4190其他收入 | C15: 1931060 | D15: 1931060 | E15: 0 | F15: 0 | G15: 推廣教育、借教室場地清潔等
A19: =A7+A10+A13+A15 -> 96692368 | B19: 合 計 | C19: =(C7+C10+C13+C15) -> 93759755 | D19: =D7+D10+D13+D15 -> 93951403 | E19: =E7+E10+E13+E15 -> -191648 | F19: =E19/D19 -> -0.002039863098
A21: 校長： 主辦會計人員： 製表：

Sheet 支出預算明細表(6)
A1: 台北市私立志仁高級中學職業進修學校
A2: 支出預算明細表
A3: 中華民國一○五學年度
A4: (103)前年度決算數 | B4: 科 目 | C4: (105)本年度預算數 | D4: (104)估計(上)決算數 | E4: (本)年度預算與估計(上)年度決算比較 | G4: 說 明
E6: 差 異 | F6: %
A7: 180000 | B7: 5110董事會支出 | C7: 500000 | D7: =D8 -> 192000 | E7: =C7-D7 -> 308000 | F7: =(E7/D7)*100 -> 160.4166667 | G7: 預計新年度董事出席費增加及預計董事會秘書支出
A8: 180000 | B8: 5111人事費 | C8: 500000 | D8: 192000 | E8: 308000 | F8: =(E8/D8)*100 -> 160.4166667
A9: =SUM(A10:A12) -> 19969305 | B9: 5120行政管理支出 | C9: =SUM(C10:C12) -> 19270740 | D9: =SUM(D10:D12) -> 19270740 | E9: 0 | F9: 0
A10: 15366590 | B10: 5121人事費 | C10: 15799228 | D10: 15799228 | E10: 0 | F10: 0
A11: 4602093 | B11: 5122業務費 | C11: 3471512 | D11: 3471512 | E11: 0 | F11: 0
A12: 622 | B12: 5123維護費 | C12: 0 | D12: 0 | E12: 0 | F12: 0
A15: =SUM(A16:A20) -> 67196556 | B15: 5130教學研究及訓輔支出 | C15: =SUM(C16:C21) -> 66478445 | D15: =SUM(D16:D21) -> 66442537 | E15: 35908 | F15: 0.05404369192
A16: 24315851 | B16: 5131人事費 | C16: 21100018 | D16: 21100018 | E16: 0 | F16: 0
A17: 20183928 | B17: 5132業務費 | C17: 19873970 | D17: 19873970 | E17: 0 | F17: 0
A18: 15066663 | B18: 5133維護費 | C18: 19034999 | D18: 19034999 | E18: 0 | F18: 0
A19: 2227882 | B19: 5134退休撫卹費 | C19: 2181711 | D19: 2181711 | F19: =(E19/D19)*100 -> 0
A20: 5402232 | B20: 5135折舊及攤銷 | C20: 4199747 | D20: 4199747 | E20: =C20-D20 -> 0 | F20: =(E20/D20)*100 -> 0
B21: 51A3超額年金 | C21: 88000 | D21: 52092 | E21: =C21-D21 -> 35908 | F21: =(E21/D21)*100 -> 68.93188973
A22: 3780300 | B22: 5140獎助學金支出 | C22: 4206175 | D22: 4206175 | E22: 0 | F22: 0
A23: 3180 | B23: 其他支出 | C23: 0 | D23: 0 | E23: 0 | F23: 0
A27: =A7+A9+A15+A22+A23 -> 91129341 | B27: 合計 | C27: =C7+C9+C15+C22+C23 -> 90455360 | D27: =D7+D9+D15+D22+D23 -> 90111452 | E27: =C27-D27 -> 343908 | F27: =(E27/D27)*100 -> 0.3816473848
A29: 校長： 主辦會計人員： 製表：
